fUSD/lending_fUSD_20260505
["ID","MTS","AMOUNT","RATE_DAILY","PERIOD"]
[421610529,1777954245000,-5000.0,0.00042453,7]
[421610538,1777954245000,-303.525871,0.00042454,120]
[421610537,1777954245000,-151.0,0.00042454,120]
[421610539,1777954245000,-303.525871,0.00042454,120]
[421610540,1777954245000,-303.525871,0.00042454,120]
[421610531,1777954245000,-41666.66,0.00042453,7]
[421610482,1777954245000,-41666.66,0.00042438,7]
[421610532,1777954245000,-41666.66,0.00042453,7]
[421610534,1777954245000,-152.12780599,0.00042454,120]
[421610533,1777954245000,-150.0,0.00042454,120]
[421610541,1777954245000,-303.525871,0.00042454,120]
[421610544,1777954245000,-1535.0,0.00042455,14]
[421610547,1777954245000,-151.0,0.00042455,14]
[421610542,1777954245000,-1670.71355,0.00042454,120]
[421610548,1777954245000,-151.86157698,0.00042455,14]
[421610545,1777954245000,-1535.0,0.00042455,14]
[421610543,1777954245000,-5000.0,0.00042454,30]
[421610549,1777954245000,-158.67376007,0.00042455,14]
[421610546,1777954245000,-1615.81069288,0.00042455,14]
[421610526,1777954245000,-643.41,0.00042453,7]
[421610527,1777954245000,-643.41,0.00042453,7]
[421610535,1777954245000,-151.0,0.00042454,120]
[421610516,1777954245000,-153.151249,0.0004245,120]
[421610481,1777954245000,-41666.66,0.00042438,7]
[421610528,1777954245000,-643.41,0.00042453,7]
[421610489,1777954245000,-41666.66,0.00042438,7]
[421610488,1777954245000,-41666.66,0.00042438,7]
[421610490,1777954245000,-500.0,0.00042438,7]
[421610491,1777954245000,-308.13778591,0.00042438,7]
[421610492,1777954245000,-328.03761654,0.00042438,120]
[421610493,1777954245000,-515.67409509,0.00042438,7]
[421610498,1777954245000,-5000.0,0.0004244,15]
[421610495,1777954245000,-300.0,0.00042439,30]
[421610496,1777954245000,-530.0,0.0004244,60]
[421610500,1777954245000,-547.9597494,0.00042442,2]
[421610499,1777954245000,-300.0,0.00042441,30]
[421610502,1777954245000,-151.0,0.00042442,120]
[421610497,1777954245000,-353.51451901,0.0004244,60]
[421610503,1777954245000,-187.820245,0.00042442,120]
[421610525,1777954245000,-659.65,0.00042453,7]
[421610512,1777954245000,-5000.0,0.00042449,2]
[421610511,1777954245000,-500.0,0.00042447,7]
[421610510,1777954245000,-198.72223653,0.00042446,7]
[421610504,1777954245000,-151.0,0.00042442,120]
[421610509,1777954245000,-198.72223653,0.00042446,7]
[421610508,1777954245000,-62968.5601241,0.00042442,2]
[421610506,1777954245000,-154.213701,0.00042442,120]
[421610505,1777954245000,-151.0,0.00042442,120]
[421610513,1777954245000,-5000.0,0.00042449,60]
[421610507,1777954245000,-1785.3159646,0.00042442,2]
[421610501,1777954245000,-4744.7878157,0.00042442,2]
[421610517,1777954245000,-5000.0,0.0004245,120]
[421610576,1777954246000,-2000.0,0.00042455,120]
[421610572,1777954246000,-2000.0,0.00042455,120]
[421610580,1777954246000,-758.0,0.00042455,60]
[421610579,1777954246000,-2000.0,0.00042455,120]
[421610574,1777954246000,-821.0,0.00042455,60]
[421610573,1777954246000,-2000.0,0.00042455,120]
[421610578,1777954246000,-821.0,0.00042455,60]
[421610569,1777954246000,-714.08587683,0.00042455,60]
[421610583,1777954246000,-766.0,0.00042455,60]
[421610581,1777954246000,-817.0,0.00042455,60]
[421610577,1777954246000,-821.0,0.00042455,60]
[421610582,1777954246000,-766.0,0.00042455,60]
[421610584,1777954246000,-766.0,0.00042455,60]
[421610585,1777954246000,-766.0,0.00042455,60]
[421610571,1777954246000,-857.0,0.00042455,60]
[421610587,1777954246000,-758.0,0.00042455,60]
[421610575,1777954246000,-821.0,0.00042455,60]
[421610570,1777954246000,-857.0,0.00042455,60]
[421610551,1777954246000,-151.0,0.00042455,30]
[421610563,1777954246000,-808.11,0.00042455,7]
[421610586,1777954246000,-913.0,0.00042455,60]
[421610554,1777954246000,-1044.3897669,0.00042455,60]
[421610550,1777954246000,-151.0,0.00042455,30]
[421610552,1777954246000,-962.0,0.00042455,60]
[421610553,1777954246000,-962.0,0.00042455,60]
[421610556,1777954246000,-808.11,0.00042455,7]
[421610566,1777954246000,-808.11,0.00042455,7]
[421610568,1777954246000,-791.0,0.00042455,60]
[421610567,1777954246000,-808.22947865,0.00042455,7]
[421610564,1777954246000,-808.11,0.00042455,7]
[421610555,1777954246000,-962.0,0.00042455,60]
[421610559,1777954246000,-808.11,0.00042455,7]
[421610561,1777954246000,-808.11,0.00042455,7]
[421610565,1777954246000,-808.11,0.00042455,7]
[421610562,1777954246000,-808.11,0.00042455,7]
[421610557,1777954246000,-808.11,0.00042455,7]
[421610558,1777954246000,-808.11,0.00042455,7]
[421610590,1777954246000,-659.65,0.00042455,7]
[421610560,1777954246000,-808.11,0.00042455,7]
[421610589,1777954246000,-659.65,0.00042455,7]
[421610608,1777954246000,-643.41,0.00042455,7]
[421610612,1777954246000,-643.41,0.00042455,7]
[421610609,1777954246000,-643.41,0.00042455,7]
[421610613,1777954246000,-643.41,0.00042455,7]
[421610615,1777954246000,-643.41,0.00042455,7]
[421610614,1777954246000,-643.41,0.00042455,7]
[421610620,1777954246000,-33342.99198108,0.00042455,7]
[421610607,1777954246000,-643.41,0.00042455,7]
[421610619,1777954246000,-3002.534448,0.00042455,120]
[421610621,1777954246000,-517.0,0.00033745,9]
[421610623,1777954246000,-485.92750623,0.00038795,2]
[421610625,1777954246000,-341.54087813,0.00040353,16]
[421610627,1777954246000,-318.85786044,0.00042455,7]
[421610624,1777954246000,-62.5043382,0.00038795,2]
[421610626,1777954246000,-175.45912187,0.00040353,16]
[421610588,1777954246000,-758.0,0.00042455,60]
[421610622,1777954246000,-1433.73350908,0.00038795,2]
[421610618,1777954246000,-3002.534448,0.00042455,120]
[421610611,1777954246000,-643.41,0.00042455,7]
[421610617,1777954246000,-3002.534448,0.00042455,120]
[421610592,1777954246000,-659.65,0.00042455,7]
[421610610,1777954246000,-643.41,0.00042455,7]
[421610593,1777954246000,-659.65,0.00042455,7]
[421610594,1777954246000,-659.65,0.00042455,7]
[421610596,1777954246000,-659.65,0.00042455,7]
[421610603,1777954246000,-1166.807549,0.00042455,120]
[421610600,1777954246000,-659.72923571,0.00042455,7]
[421610597,1777954246000,-659.65,0.00042455,7]
[421610598,1777954246000,-659.65,0.00042455,7]
[421610591,1777954246000,-659.65,0.00042455,7]
[421610604,1777954246000,-1166.807549,0.00042455,120]
[421610595,1777954246000,-659.65,0.00042455,7]
[421610602,1777954246000,-1166.807549,0.00042455,120]
[421610601,1777954246000,-1166.807549,0.00042455,120]
[421610606,1777954246000,-151.0,0.00042455,120]
[421610605,1777954246000,-151.0,0.00042455,120]
[421610616,1777954246000,-643.61526076,0.00042455,7]
[421610599,1777954246000,-659.65,0.00042455,7]
[421610654,1777955158000,-772.38,0.00022562,2]
[421610653,1777955158000,-214.4,0.00022562,2]
[421610651,1777955158000,-266.87,0.00022562,2]
[421610652,1777955158000,-1678.07,0.00022562,2]
[421610650,1777955158000,-1600.0,0.00022561,2]
[421610649,1777955158000,-4849.31,0.00020951,2]
[421610648,1777955158000,-895.96,0.00020951,2]
[421610644,1777955158000,-300.0,0.0002095,2]
[421610647,1777955158000,-163.1,0.00020951,2]
[421610645,1777955158000,-266.32,0.00020951,2]
[421610643,1777955158000,-1200.0,0.00020949,2]
[421610642,1777955158000,-300.0,0.00020949,2]
[421610640,1777955158000,-645.88,0.00020548,2]
[421610641,1777955158000,-300.0,0.00020949,2]
[421610655,1777955158000,-4180.43,0.00022562,2]
[421610646,1777955158000,-1946.56,0.00020951,2]
[421610656,1777955158000,-250.0,0.00022603,2]
[421610671,1777955158000,-500.0,0.00023395,2]
[421610658,1777955158000,-420.0,0.0002279,2]
[421610674,1777955158000,-500.0,0.00023395,2]
[421610670,1777955158000,-500.0,0.00023395,2]
[421610673,1777955158000,-500.0,0.00023395,2]
[421610657,1777955158000,-392.42377518,0.00022603,2]
[421610669,1777955158000,-346.85827634,0.00023395,2]
[421610668,1777955158000,-500.0,0.00023395,2]
[421610667,1777955158000,-500.0,0.00023395,2]
[421610672,1777955158000,-500.0,0.00023395,2]
[421610665,1777955158000,-500.0,0.00023395,2]
[421610664,1777955158000,-422.70659331,0.00023395,2]
[421610663,1777955158000,-153.72,0.000233,2]
[421610659,1777955158000,-1680.0,0.00022897,2]
[421610662,1777955158000,-15466.26,0.00023045,2]
[421610661,1777955158000,-999.99,0.00023045,2]
[421610660,1777955158000,-854.0,0.00023,2]
[421610666,1777955158000,-500.0,0.00023395,2]
[421610675,1777955159000,-500.0,0.00023395,2]
[421610677,1777955159000,-500.0,0.00023395,2]
[421610678,1777955159000,-12156.89728373,0.00023396,2]
[421610676,1777955159000,-500.0,0.00023395,2]
[421610689,1777955432000,-1200.0,0.00014999,2]
[421610683,1777955432000,-292.97700002,0.00012,2]
[421610684,1777955432000,-26970.05453691,0.00012,2]
[421610687,1777955432000,-150.0,0.00014999,2]
[421610686,1777955432000,-173.1682169,0.0001499,2]
[421610685,1777955432000,-250.0,0.00014,2]
[421610690,1777955432000,-150.0,0.00014999,2]
[421610695,1777955432000,-765.71157577,0.00015,2]
[421610688,1777955432000,-300.0,0.00014999,2]
[421610692,1777955432000,-54274.61468293,0.00015,2]
[421610691,1777955432000,-298.9612737,0.00015,2]
[421610694,1777955432000,-797.59445327,0.00015,2]
[421610696,1777955432000,-378.71365915,0.00015,2]
[421610697,1777955432000,-2512.13745261,0.00015,2]
[421610693,1777955432000,-638.34053726,0.00015,2]
[421610704,1777955438000,-1733.58218583,0.00015,2]
[421610705,1777955438000,-7301.41972174,0.00015,2]
[421610703,1777955438000,-1236.15647072,0.00015,2]
[421610701,1777955438000,-558.3089765,0.00015,2]
[421610702,1777955438000,-1516.16637062,0.00015,2]
[421610707,1777955440000,-933.835,0.00015,2]
[421610708,1777955440000,-509.0,0.00015,2]
[421610737,1777955441000,-5648.0538895,0.00025085,2]
[421610742,1777955441000,-10977.54522216,0.00026765,2]
[421610749,1777955441000,-10977.54522216,0.00028994,2]
[421610760,1777955441000,-205.33,0.0003169,2]
[421610759,1777955441000,-500.0,0.00031496,2]
[421610751,1777955441000,-200.0,0.0003,2]
[421610761,1777955441000,-500.0,0.0003177,2]
[421610750,1777955441000,-2000.0,0.00029128,2]
[421610748,1777955441000,-29572.29134826,0.00028993,4]
[421610739,1777955441000,-5000.0,0.00026625,2]
[421610752,1777955441000,-631.3,0.00030066,2]
[421610753,1777955441000,-631.3,0.0003034,2]
[421610763,1777955441000,-737.60539042,0.000318,2]
[421610758,1777955441000,-10977.54522216,0.00031223,2]
[421610757,1777955441000,-500.0,0.00031222,2]
[421610754,1777955441000,-159.97,0.00030614,2]
[421610755,1777955441000,-200.0,0.00030881,2]
[421610741,1777955441000,-300.0,0.00026764,10]
[421610762,1777955441000,-737.60539042,0.000318,2]
[421610773,1777955441000,-500.0,0.00032866,2]
[421610766,1777955441000,-500.0,0.00032044,2]
[421610765,1777955441000,-206.38,0.00031956,2]
[421610769,1777955441000,-2000.0,0.00032365,2]
[421610764,1777955441000,-737.60539042,0.000318,2]
[421610774,1777955441000,-502.62790938,0.0003314,2]
[421610767,1777955441000,-206.16,0.00032245,2]
[421610756,1777955441000,-13786.54345427,0.00031162,2]
[421610744,1777955441000,-1500.0,0.00027397,2]
[421610746,1777955441000,-302.89,0.000274,7]
[421610738,1777955441000,-2000.0,0.00025892,2]
[421610772,1777955441000,-302.89,0.000327,7]
[421610716,1777955441000,-2351.0,0.00018149,2]
[421610715,1777955441000,-416.0,0.00017339,2]
[421610713,1777955441000,-113161.59688033,0.00017,2]
[421610710,1777955441000,-300.0,0.00016,2]
[421610720,1777955441000,-868.0,0.0002,2]
[421610711,1777955441000,-255.0,0.00016124,2]
[421610709,1777955441000,-1490416.43760488,0.00015,2]
[421610718,1777955441000,-3292.0,0.00019964,2]
[421610712,1777955441000,-1680.0,0.00016499,2]
[421610721,1777955441000,-1860.0,0.0002,2]
[421610722,1777955441000,-212428.62,0.00020145,2]
[421610727,1777955441000,-10977.5452222,0.00022307,2]
[421610743,1777955441000,-518.0,0.00027137,2]
[421610728,1777955441000,-158.05829796,0.00022407,2]
[421610731,1777955441000,-6651.43,0.00023373,2]
[421610725,1777955441000,-1083.0,0.0002196,2]
[421610732,1777955441000,-9999.99,0.00023395,2]
[421610729,1777955441000,-158.05829794,0.00022407,2]
[421610733,1777955441000,-13786.54345427,0.00024446,2]
[421610726,1777955441000,-13786.54345431,0.00022207,2]
[421610730,1777955441000,-352.15627928,0.00023373,2]
[421610734,1777955441000,-10977.54522216,0.00024536,2]
[421610745,1777955441000,-12013.04,0.000274,7]
[421610747,1777955441000,-13786.54345427,0.00028923,2]
[421610736,1777955441000,-179.33,0.00024658,2]
[421610735,1777955441000,-300.0,0.00024657,2]
[421610740,1777955441000,-13786.54345427,0.00026684,2]
[421610723,1777955441000,-9999.99,0.00020145,2]
[421610768,1777955441000,-500.0,0.00032318,2]
[421610792,1777955441000,-279.817,0.00037296,2]
[421610770,1777955441000,-500.0,0.00032592,2]
[421610807,1777955441000,-501.21025496,0.00037973,5]
[421610804,1777955441000,-577.97032519,0.00037973,5]
[421610812,1777955441000,-502.49893683,0.00037973,5]
[421610811,1777955441000,-379.12438848,0.00037973,5]
[421610809,1777955441000,-500.7364306,0.00037973,5]
[421610815,1777955441000,-501.46755329,0.00037973,5]
[421610825,1777955441000,-150.0,0.00038022,7]
[421610826,1777955441000,-150.6370443,0.00038022,7]
[421610827,1777955441000,-150.0,0.00038022,7]
[421610821,1777955441000,-174.9145157,0.00038014,5]
[421610818,1777955441000,-5529.0,0.00038,5]
[421610816,1777955441000,-500.0,0.00037973,5]
[421610822,1777955441000,-500.0,0.00038014,5]
[421610824,1777955441000,-150.0,0.00038022,7]
[421610820,1777955441000,-500.0,0.00038014,5]
[421610819,1777955441000,-164.3873393,0.00038014,2]
[421610823,1777955441000,-150.0,0.00038022,30]
[421610829,1777955441000,-150.82083343,0.00038022,7]
[421610828,1777955441000,-150.0,0.00038022,7]
[421610830,1777955441000,-150.0,0.00038022,7]
[421610832,1777955441000,-150.0,0.00038022,7]
[421610835,1777955441000,-150.0,0.00038034,30]
[421610831,1777955441000,-150.0,0.00038022,7]
[421610836,1777955441000,-463.42,0.00038034,30]
[421610833,1777955441000,-160.12,0.00038034,30]
[421610834,1777955441000,-1006.84,0.00038034,30]
[421610771,1777955441000,-3094.46514437,0.00032689,30]
[421610810,1777955441000,-500.0,0.00037973,2]
[421610805,1777955441000,-172.14650086,0.00037973,5]
[421610817,1777955441000,-318793.53165558,0.00038,2]
[421610813,1777955441000,-501.10146709,0.00037973,5]
[421610776,1777955441000,-10977.54522216,0.00033451,2]
[421610814,1777955441000,-500.0,0.00037973,5]
[421610786,1777955441000,-150.0,0.00035674,2]
[421610778,1777955441000,-12013.04,0.000346,7]
[421610779,1777955441000,-948.043,0.00034828,40]
[421610775,1777955441000,-13786.54345427,0.000334,2]
[421610777,1777955441000,-151.32979676,0.0003454,2]
[421610782,1777955441000,-2000.0,0.00035601,2]
[421610780,1777955441000,-171.94585547,0.00034828,40]
[421610784,1777955441000,-150.0,0.00035674,2]
[421610785,1777955441000,-150.0,0.00035674,2]
[421610781,1777955441000,-161.01393277,0.00035,30]
[421610789,1777955441000,-245.02635591,0.00036405,3]
[421610790,1777955441000,-5529.0,0.000371,3]
[421610783,1777955441000,-13786.54345427,0.00035639,2]
[421610806,1777955441000,-265.6801109,0.00037973,2]
[421610808,1777955441000,-500.0,0.00037973,5]
[421610794,1777955441000,-1233.417,0.00037296,2]
[421610803,1777955441000,-10977.54522216,0.00037909,2]
[421610797,1777955441000,-518.0,0.0003771,13]
[421610796,1777955441000,-164.435,0.00037296,2]
[421610788,1777955441000,-1058.0,0.000363,2]
[421610800,1777955441000,-13786.54345427,0.00037878,2]
[421610799,1777955441000,-302.89,0.000378,30]
[421610791,1777955441000,-283.635989,0.0003724,21]
[421610802,1777955441000,-179.43370169,0.000379,120]
[421610787,1777955441000,-10977.54522216,0.0003568,2]
[421610801,1777955441000,-162.51838138,0.00037888,2]
[421610793,1777955441000,-1285.033,0.00037296,2]
[421610877,1777955442000,-150.0,0.00040134,7]
[421610887,1777955442000,-1264.46638358,0.000403,30]
[421610880,1777955442000,-2500.0,0.00040206,5]
[421610879,1777955442000,-10977.54522216,0.00040138,15]
[421610876,1777955442000,-13786.54345427,0.00040116,15]
[421610870,1777955442000,-1183303.67403908,0.0003982,2]
[421610874,1777955442000,-150.0,0.00039923,7]
[421610872,1777955442000,-504.52906085,0.0003985,5]
[421610873,1777955442000,-2914.05451966,0.0003988,120]
[421610871,1777955442000,-209.616465,0.00039847,21]
[421610869,1777955442000,-150.0,0.00039712,7]
[421610882,1777955442000,-530.0,0.000403,30]
[421610875,1777955442000,-441.33,0.00040068,2]
[421610881,1777955442000,-1221.0,0.00040296,2]
[421610891,1777955442000,-12013.04,0.000404,7]
[421610885,1777955442000,-1264.46638358,0.000403,30]
[421610888,1777955442000,-500.0,0.000403,5]
[421610886,1777955442000,-1264.46638358,0.000403,30]
[421610889,1777955442000,-500.0,0.000403,5]
[421610883,1777955442000,-534.0,0.000403,30]
[421610890,1777955442000,-150.0,0.00040345,7]
[421610892,1777955442000,-441.33,0.00040465,2]
[421610893,1777955442000,-150.0,0.00040557,7]
[421610894,1777955442000,-3000.0,0.00040754,5]
[421610895,1777955442000,-150.0,0.00040768,7]
[421610897,1777955442000,-150.0,0.00040838,30]
[421610898,1777955442000,-150.0,0.00040838,7]
[421610867,1777955442000,-2000.0,0.00039658,5]
[421610884,1777955442000,-537.0,0.000403,30]
[421610868,1777955442000,-441.33,0.00039671,2]
[421610839,1777955442000,-150.0,0.00038444,7]
[421610866,1777955442000,-302.89,0.000396,30]
[421610840,1777955442000,-268.50462096,0.00038521,5]
[421610837,1777955442000,-2508.26,0.00038034,30]
[421610838,1777955442000,-150.0,0.00038233,7]
[421610842,1777955442000,-503.05932703,0.00038521,5]
[421610852,1777955442000,-1689.86785286,0.0003888,60]
[421610843,1777955442000,-464.0,0.00038536,30]
[421610853,1777955442000,-150.0,0.00039078,7]
[421610844,1777955442000,-1000.0,0.00038562,5]
[421610841,1777955442000,-501.58087282,0.00038521,2]
[421610845,1777955442000,-1001.47790772,0.00038562,5]
[421610848,1777955442000,-150.0,0.00038656,7]
[421610849,1777955442000,-2000.0,0.00038838,2]
[421610850,1777955442000,-533.25309858,0.00038867,5]
[421610878,1777955442000,-150.0,0.00040134,7]
[421610896,1777955442000,-152.27,0.0004077,120]
[421610851,1777955442000,-150.0,0.00038867,7]
[421610854,1777955442000,-1500.0,0.0003911,5]
[421610857,1777955442000,-500.0,0.0003939,7]
[421610860,1777955442000,-2500.0,0.0003939,5]
[421610859,1777955442000,-2500.0,0.0003939,5]
[421610858,1777955442000,-500.0,0.0003939,7]
[421610855,1777955442000,-150.0,0.00039289,7]
[421610856,1777955442000,-500.0,0.0003939,7]
[421610861,1777955442000,-2500.0,0.0003939,5]
[421610862,1777955442000,-455.0,0.00039391,2]
[421610863,1777955442000,-150.0,0.0003943,30]
[421610864,1777955442000,-150.0,0.0003943,7]
[421610865,1777955442000,-150.0,0.00039501,7]
[421610846,1777955442000,-1260.2511689,0.00038586,2]
[421610899,1777955442000,-200.36962611,0.00040848,5]
[421610847,1777955442000,-12013.04,0.000386,7]
[421610902,1777955442000,-441.33,0.00040861,2]
[421610933,1777955442000,-150.0,0.00041613,30]
[421610937,1777955442000,-508.18148523,0.00041673,10]
[421610935,1777955442000,-200.0,0.00041657,120]
[421610934,1777955442000,-441.33192294,0.00041655,2]
[421610938,1777955442000,-500.0,0.00041673,10]
[421610941,1777955442000,-480453.1017,0.00041673,2]
[421610939,1777955442000,-150.15266303,0.00041673,10]
[421610943,1777955442000,-2552.154281,0.00041673,120]
[421610954,1777955442000,-1200.0,0.000417,120]
[421610945,1777955442000,-151.0,0.00041673,120]
[421610942,1777955442000,-2552.154281,0.00041673,120]
[421610953,1777955442000,-13079.0,0.000417,117]
[421610944,1777955442000,-2552.154281,0.00041673,120]
[421610936,1777955442000,-500.0,0.00041673,10]
[421610946,1777955442000,-2552.154281,0.00041673,120]
[421610951,1777955442000,-151.0,0.00041673,120]
[421610947,1777955442000,-151.0,0.00041673,120]
[421610949,1777955442000,-151.0,0.00041673,120]
[421610952,1777955442000,-151.0,0.00041673,120]
[421610955,1777955442000,-1200.0,0.000417,120]
[421610957,1777955442000,-1200.0,0.000417,120]
[421610961,1777955442000,-704.0,0.000418,30]
[421610956,1777955442000,-1200.0,0.000417,120]
[421610960,1777955442000,-237.21858681,0.00041772,2]
[421610959,1777955442000,-10000.0,0.00041711,2]
[421610962,1777955442000,-150.0,0.00041824,30]
[421610963,1777955442000,-1419.73271619,0.0004185,10]
[421610901,1777955442000,-863.37,0.00040857,2]
[421610948,1777955442000,-151.0,0.00041673,120]
[421610940,1777955442000,-588.11830237,0.00041673,10]
[421610950,1777955442000,-151.0,0.00041673,120]
[421610932,1777955442000,-5000.0,0.00041599,40]
[421610929,1777955442000,-5000.0,0.00041573,120]
[421610900,1777955442000,-505.00869738,0.00040848,5]
[421610903,1777955442000,-1000.0,0.00040932,120]
[421610905,1777955442000,-9079.78471663,0.00040981,3]
[421610904,1777955442000,-150.0,0.00040979,7]
[421610908,1777955442000,-2831.74302598,0.00041,30]
[421610912,1777955442000,-150.0,0.00041152,2]
[421610907,1777955442000,-20630.88577813,0.00041,30]
[421610913,1777955442000,-5000.0,0.00041169,11]
[421610909,1777955442000,-209.0,0.00041064,10]
[421610911,1777955442000,-500.0,0.000411,30]
[421610906,1777955442000,-150.0,0.00041,120]
[421610914,1777955442000,-1022.95764695,0.00041183,2]
[421610916,1777955442000,-5000.0,0.00041208,70]
[421610910,1777955442000,-500.0,0.000411,30]
[421610928,1777955442000,-5000.0,0.00041552,17]
[421610931,1777955442000,-281.2000451,0.00041599,2]
[421610925,1777955442000,-792.34558,0.000415,20]
[421610930,1777955442000,-1853.21476743,0.00041573,2]
[421610920,1777955442000,-5000.0,0.00041455,13]
[421610918,1777955442000,-3500.0,0.00041302,10]
[421610922,1777955442000,-227.62634141,0.00041473,13]
[421610924,1777955442000,-954.0,0.00041494,7]
[421610917,1777955442000,-441.33,0.00041258,2]
[421610923,1777955442000,-227.62634141,0.00041473,13]
[421610919,1777955442000,-150.0,0.00041402,30]
[421610926,1777955442000,-229.39522217,0.00041527,2]
[421610915,1777955442000,-150.0,0.0004119,30]
[421610927,1777955442000,-249.07900578,0.00041532,14]
[421610921,1777955442000,-223.1,0.00041459,120]
[421610992,1777955443000,-192.19916494,0.00042191,6]
[421610997,1777955443000,-150.0,0.00042247,30]
[421610983,1777955443000,-243.673662,0.00041999,120]
[421610989,1777955443000,-150.0,0.00042035,30]
[421610991,1777955443000,-3650.31103262,0.00042164,2]
[421610993,1777955443000,-1000.0,0.00042221,10]
[421610988,1777955443000,-1270.00538415,0.00042,30]
[421610990,1777955443000,-180.40088032,0.00042144,60]
[421611006,1777955443000,-151.0,0.00042268,120]
[421611004,1777955443000,-303.833203,0.00042268,120]
[421610996,1777955443000,-150.0,0.00042247,120]
[421610998,1777955443000,-150.0,0.00042247,30]
[421610999,1777955443000,-150.0,0.00042247,30]
[421611002,1777955443000,-303.833203,0.00042268,120]
[421611000,1777955443000,-150.0,0.00042247,30]
[421611003,1777955443000,-303.833203,0.00042268,120]
[421611001,1777955443000,-150.0,0.00042247,30]
[421610985,1777955443000,-1866.53309,0.00041999,120]
[421611005,1777955443000,-303.833203,0.00042268,120]
[421611007,1777955443000,-182.115522,0.00042268,120]
[421610995,1777955443000,-503.99967683,0.00042221,10]
[421610980,1777955443000,-2500.0,0.00041999,5]
[421610986,1777955443000,-295511.61599038,0.00042,120]
[421611008,1777955443000,-182.115522,0.00042268,120]
[421610966,1777955443000,-157.38349537,0.000419,120]
[421610967,1777955443000,-157.38349537,0.000419,120]
[421610968,1777955443000,-157.38349537,0.000419,120]
[421610964,1777955443000,-863.37,0.00041878,2]
[421610965,1777955443000,-10136.27433168,0.000419,30]
[421610970,1777955443000,-157.38349537,0.000419,120]
[421610982,1777955443000,-1866.53309,0.00041999,120]
[421610979,1777955443000,-500.0,0.00041999,7]
[421610977,1777955443000,-3650.31103264,0.00041935,2]
[421610969,1777955443000,-157.38349537,0.000419,120]
[421610976,1777955443000,-157.38349537,0.00041935,120]
[421610972,1777955443000,-157.38349537,0.000419,120]
[421610978,1777955443000,-1853.21476741,0.00041983,2]
[421610973,1777955443000,-157.38349537,0.000419,120]
[421610974,1777955443000,-157.38349537,0.000419,120]
[421610971,1777955443000,-157.38349537,0.000419,120]
[421610975,1777955443000,-157.38349537,0.000419,120]
[421610984,1777955443000,-1866.53309,0.00041999,120]
[421610987,1777955443000,-322.6025858,0.00042,120]
[421611015,1777955443000,-151.0,0.00042268,7]
[421610981,1777955443000,-1866.53309,0.00041999,120]
[421611016,1777955443000,-296.137366,0.00042268,120]
[421611041,1777955443000,-151.0,0.00042268,120]
[421611039,1777955443000,-2552.154281,0.00042268,120]
[421611046,1777955443000,-737.0,0.00042268,7]
[421611044,1777955443000,-151.0,0.00042268,120]
[421611043,1777955443000,-198.82556,0.00042268,120]
[421611037,1777955443000,-2552.154281,0.00042268,120]
[421611040,1777955443000,-151.0,0.00042268,120]
[421611042,1777955443000,-151.0,0.00042268,120]
[421611045,1777955443000,-151.0,0.00042268,120]
[421611038,1777955443000,-151.0,0.00042268,120]
[421611036,1777955443000,-2552.154281,0.00042268,120]
[421611048,1777955443000,-1109.46875634,0.00042268,2]
[421611049,1777955443000,-290.84887371,0.00042268,2]
[421611050,1777955443000,-597.34621392,0.00042268,2]
[421611047,1777955443000,-966309.8993695,0.00042268,2]